fUST/lending_fUST_20250804
["ID","MTS","AMOUNT","RATE_DAILY","PERIOD"]
[377223719,1754303448805,-460.0,0.00036037,2]
[377223720,1754303448815,-3088.17,0.00036037,2]
[377223721,1754303448824,-460.0,0.00036037,2]
[377223722,1754303448834,-475.07,0.00036037,2]
[377223723,1754303448843,-460.0,0.00036037,2]
[377223724,1754303448852,-694.91,0.00036037,2]
[377223725,1754303448861,-1226.35,0.00036037,2]
[377223726,1754303448871,-471.50706535,0.00036037,2]
[377223727,1754303448880,-1313.4,0.00036037,2]
[377223728,1754303448889,-460.0,0.00036037,2]
[377223729,1754303448898,-460.0,0.00036037,2]
[377223730,1754303448908,-1976.52,0.00036037,2]
[377223731,1754303448917,-151.0,0.00036037,14]
[377223732,1754303448927,-151.0,0.00036037,14]
[377223733,1754303448936,-760.55,0.00036037,2]
[377223734,1754303448945,-460.0,0.00036037,2]
[377223735,1754303448955,-353.89308361,0.00036037,2]
[377223736,1754303448964,-1919.9,0.00036037,2]
[377223737,1754303448974,-460.0,0.00036037,2]
[377223738,1754303448983,-460.0,0.00036037,2]
[377223739,1754303448992,-1982.17,0.00036037,2]
[377223740,1754303449002,-460.0,0.00036037,2]
[377223741,1754303449011,-460.0,0.00036037,2]
[377223742,1754303449021,-859.86,0.00036037,2]
[377223743,1754303449030,-460.0,0.00036037,2]
[377223744,1754303449039,-460.0,0.00036037,2]
[377223745,1754303449048,-460.0,0.00036037,2]
[377223746,1754303449058,-847.55,0.00036037,2]
[377223747,1754303449068,-151.0,0.00036037,14]
[377223748,1754303449077,-460.0,0.00036037,2]
[377223750,1754303449195,-534.64,0.00036037,2]
[377223751,1754303449205,-460.0,0.00036037,2]
[377223752,1754303449215,-460.0,0.00036037,2]
[377223753,1754303449224,-530.99,0.00036037,2]
[377223754,1754303449233,-1893.38,0.00036037,2]
[377223755,1754303449242,-1421.8,0.00036037,2]
[377223756,1754303449252,-1103.48,0.00036037,2]
[377223757,1754303449261,-460.0,0.00036037,2]
[377223758,1754303449271,-500.0,0.00036037,2]
[377223759,1754303449280,-460.0,0.00036037,2]
[377223760,1754303449289,-460.0,0.00036037,2]
[377223761,1754303449298,-619.57,0.00036037,2]
[377223762,1754303449307,-1920.5,0.00036037,2]
[377223763,1754303449316,-780.86,0.00036037,2]
[377223764,1754303449325,-200.0,0.00036046,10]
[377223765,1754303449334,-1241.24,0.00036047,2]
[377223766,1754303449344,-728.2,0.00036047,2]
[377223767,1754303449353,-5667.12,0.00036047,2]
[377223768,1754303449362,-151.0,0.00036047,14]
[377223769,1754303449372,-609.53713742,0.00036047,2]
[377223770,1754303449381,-197.317515,0.00036047,14]
[377223771,1754303449390,-197.317515,0.00036047,14]
[377223772,1754303449399,-1081.47,0.00036047,2]
[377223773,1754303449408,-6359.95,0.00036047,2]
[377223774,1754303449418,-759.74,0.00036047,2]
[377223775,1754303449427,-460.0,0.00036047,2]
[377223776,1754303449436,-479.47525283,0.00036047,2]
[377223777,1754303449446,-703.44,0.00036047,2]
[377223778,1754303449455,-1634.51,0.00036047,2]
[377223779,1754303449464,-865.36,0.00036047,2]
[377223780,1754303449474,-460.0,0.00036047,2]
[377223781,1754303449485,-714.63,0.00036047,2]
[377223782,1754303449494,-2914.88,0.00036047,2]
[377223783,1754303449504,-460.0,0.00036047,2]
[377223784,1754303449513,-460.0,0.00036065,2]
[377223785,1754303449522,-460.0,0.00036065,2]
[377223786,1754303449531,-1302.84,0.00036075,2]
[377223787,1754303449541,-1463.59,0.00036075,2]
[377223788,1754303449551,-4744.6,0.00036075,2]
[377223789,1754303449560,-989.06,0.00036075,2]
[377223790,1754303449570,-12509.66,0.00036075,2]
[377223791,1754303449580,-500.0,0.00036081,5]
[377223792,1754303449589,-1630.43,0.00036085,2]
[377223793,1754303449599,-708.75,0.00036085,2]
[377223794,1754303449608,-520.83,0.00036085,2]
[377223795,1754303449618,-460.0,0.00036085,2]
[377223796,1754303449627,-7973.24,0.00036085,2]
[377223797,1754303449637,-460.0,0.00036085,2]
[377223798,1754303449646,-1196.17,0.00036085,2]
[377223799,1754303449655,-698.03,0.00036085,2]
[377223800,1754303449665,-1745.85,0.00036085,2]
[377223801,1754303449674,-1756.77,0.00036085,2]
[377223802,1754303449683,-734.96,0.00036085,2]
[377223803,1754303449693,-1702.98,0.00036085,2]
[377223804,1754303449702,-2284.04,0.00036085,2]
[377223805,1754303449717,-460.0,0.00036085,2]
[377223806,1754303449731,-886.1,0.00036085,2]
[377223807,1754303449741,-151.0,0.00036132,14]
[377223808,1754303449750,-2949.43158728,0.00036141,34]
[377223809,1754303449759,-509.79912995,0.00036144,5]
[377223810,1754303449770,-500.0,0.00036144,5]
[377223811,1754303449779,-8663.55376536,0.00036209,2]
[377223812,1754303449788,-654.70135521,0.00036232,2]
[377223813,1754303449798,-463.30665007,0.00036233,2]
[377223814,1754303449807,-466.81007712,0.00036233,2]
[377223815,1754303449817,-151.0,0.00036233,14]
[377223816,1754303449826,-460.0,0.00036233,2]
[377223817,1754303449836,-460.0,0.00036233,2]
[377223818,1754303449845,-460.0,0.00036233,2]
[377223819,1754303449854,-151.0,0.00036233,14]
[377223820,1754303449864,-151.0,0.00036233,14]
[377223821,1754303449873,-742.96,0.00036299,2]
[377223822,1754303449883,-567.94,0.00036299,2]
[377223823,1754303449893,-460.0,0.00036299,2]
[377223824,1754303449902,-460.0,0.00036299,2]
[377223825,1754303449912,-643.41,0.00036299,2]
[377223826,1754303449921,-460.0,0.00036299,2]
[377223827,1754303449931,-460.0,0.00036299,2]
[377223828,1754303449940,-1105.59,0.00036299,2]
[377223829,1754303449950,-1163.89,0.00036299,2]
[377223830,1754303449960,-460.0,0.00036299,2]
[377223831,1754303449970,-460.0,0.00036299,2]
[377223832,1754303449979,-460.0,0.00036299,2]
[377223833,1754303449989,-805.32,0.00036299,2]
[377223834,1754303449998,-460.0,0.00036299,2]
[377223835,1754303450008,-460.0,0.00036299,2]
[377223836,1754303450017,-460.0,0.00036299,2]
[377223837,1754303450027,-17736.97,0.00036299,2]
[377223838,1754303450036,-886.63,0.00036299,2]
[377223839,1754303450045,-460.0,0.00036299,2]
[377223840,1754303450055,-675.43,0.00036299,2]
[377223841,1754303450064,-917.98,0.00036299,2]
[377223842,1754303450073,-1081.86,0.00036299,2]
[377223843,1754303450083,-6859.16,0.00036301,120]
[377223844,1754303450093,-460.0,0.00036306,2]
[377223845,1754303450102,-460.0,0.00036306,2]
[377223846,1754303450112,-460.0,0.00036306,2]
[377223847,1754303450121,-784.53,0.00036306,2]
[377223848,1754303450130,-1988.39,0.00036306,2]
[377223849,1754303450140,-1848.23,0.00036306,2]
[377223850,1754303450150,-1051.73,0.00036306,2]
[377223851,1754303450159,-672.94,0.00036306,2]
[377223852,1754303450169,-460.0,0.00036306,2]
[377223853,1754303450178,-460.0,0.00036306,2]
[377223854,1754303450188,-768.23,0.00036306,2]
[377223855,1754303450197,-828.61,0.00036306,2]
[377223856,1754303450206,-1432.89,0.00036306,2]
[377223857,1754303450216,-460.0,0.00036306,2]
[377223858,1754303450225,-1114.04,0.00036306,2]
[377223859,1754303450235,-671.32,0.00036306,2]
[377223860,1754303450244,-1829.3,0.00036306,2]
[377223861,1754303450253,-1084.05,0.00036306,2]
[377223862,1754303450263,-460.0,0.00036307,2]
[377223863,1754303450273,-817.04,0.00036309,2]
[377223864,1754303450282,-460.0,0.00036309,2]
[377223865,1754303450292,-460.0,0.00036309,2]
[377223866,1754303450301,-168.26841844,0.00036309,2]
[377223867,1754303450310,-658.32,0.00036309,2]
[377223868,1754303450320,-460.0,0.00036309,2]
[377223869,1754303450329,-488.29,0.00036309,2]
[377223870,1754303450339,-460.0,0.00036309,2]
[377223872,1754303450348,-460.0,0.00036309,2]
[377223874,1754303450357,-460.0,0.00036309,2]
[377223875,1754303450366,-460.0,0.00036309,2]
[377223876,1754303450376,-460.0,0.00036309,2]
[377223877,1754303450385,-592.16905637,0.00036309,2]
[377223879,1754303450395,-460.0,0.00036309,2]
[377223881,1754303450404,-460.0,0.00036309,2]
[377223882,1754303450413,-460.0,0.00036309,2]
[377223884,1754303450423,-460.0,0.00036309,2]
[377223886,1754303450432,-460.0,0.00036309,2]
[377223887,1754303450443,-988.51,0.00036309,2]
[377223888,1754303450454,-460.0,0.00036309,2]
[377223890,1754303450464,-460.0,0.00036309,2]
[377223892,1754303450474,-460.0,0.00036309,2]
[377223894,1754303450483,-460.0,0.00036309,2]
[377223896,1754303450492,-532.94,0.00036309,2]
[377223897,1754303450500,-460.0,0.00036309,2]
[377223899,1754303450510,-460.0,0.00036309,2]
[377223901,1754303450519,-460.0,0.00036309,2]
[377223903,1754303450529,-460.0,0.00036309,2]
[377223905,1754303450539,-329.37272662,0.00036309,2]
[377223906,1754303450549,-471.04574375,0.00036309,2]
[377223908,1754303450558,-460.0,0.00036309,2]
[377223910,1754303450568,-669.54,0.00036309,2]
[377223912,1754303450577,-171.547005,0.00036309,14]
[377223913,1754303450587,-460.0,0.00036309,2]
[377223914,1754303450596,-500.0,0.00036309,2]
[377223915,1754303450605,-460.0,0.00036309,2]
[377223916,1754303450615,-460.0,0.00036309,2]
[377223917,1754303450624,-460.0,0.00036309,2]
[377223918,1754303450633,-2434.32,0.00036309,2]
[377223919,1754303450643,-1790.38,0.00036309,2]
[377223920,1754303450652,-460.0,0.00036309,2]
[377223921,1754303450661,-1017.87,0.00036309,2]
[377223922,1754303450672,-892.82,0.00036309,2]
[377223923,1754303450681,-460.0,0.00036309,2]
[377223924,1754303450691,-1673.54,0.00036309,2]
[377223925,1754303450701,-1347.64,0.00036309,2]
[377223926,1754303450710,-507.16,0.00036309,2]
[377223927,1754303450723,-460.0,0.00036309,2]
[377223928,1754303450732,-460.0,0.00036309,2]
[377223929,1754303450742,-460.0,0.00036309,2]
[377223930,1754303450753,-460.0,0.00036309,2]
[377223931,1754303450763,-460.0,0.00036309,2]
[377223932,1754303450772,-2659.51,0.00036309,2]
[377223933,1754303450782,-1282.94,0.00036309,2]
[377223934,1754303450792,-547.39,0.00036309,2]
[377223935,1754303450802,-500.0,0.0003631,3]
[377223936,1754303450812,-16517.47,0.0003631,2]
[377223937,1754303450821,-1323.01,0.0003631,2]
[377223938,1754303450831,-7476.02,0.0003631,2]
[377223939,1754303450841,-460.0,0.0003631,2]
[377223940,1754303450850,-3933.54,0.0003631,2]
[377223941,1754303450860,-460.0,0.00036311,2]
[377223942,1754303450870,-2128.75,0.00036311,2]
[377223943,1754303450883,-151.0,0.00036311,14]
[377223944,1754303450893,-460.0,0.00036311,2]
[377223945,1754303450902,-2479.48,0.00036311,2]
[377223946,1754303450912,-460.0,0.00036311,2]
[377223947,1754303450922,-1021.41,0.00036311,2]
[377223948,1754303450931,-463.49605169,0.00036311,2]
[377223949,1754303450941,-826.45,0.00036311,2]
[377223950,1754303450951,-460.0,0.00036311,2]
[377223951,1754303450960,-3088.17,0.00036311,2]
[377223952,1754303450969,-475.07,0.00036311,2]
[377223954,1754303450978,-460.0,0.00036311,2]
[377223955,1754303450987,-694.91,0.00036311,2]
[377223956,1754303450997,-1226.35,0.00036311,2]
[377223957,1754303451010,-1313.4,0.00036311,2]
[377223958,1754303451019,-460.0,0.00036311,2]
[377223959,1754303451119,-460.0,0.00036311,2]
[377223960,1754303451130,-1976.52,0.00036311,2]
[377223961,1754303451139,-151.0,0.00036311,14]
[377223962,1754303451149,-151.0,0.00036311,14]
[377223963,1754303451158,-760.55,0.00036311,2]
[377223964,1754303451167,-1919.9,0.00036311,2]
[377223965,1754303451177,-460.0,0.00036311,2]
[377223966,1754303451186,-460.0,0.00036311,2]
[377223967,1754303451195,-1982.17,0.00036311,2]
[377223968,1754303451204,-460.0,0.00036311,2]
[377223969,1754303451214,-460.0,0.00036311,2]
[377223970,1754303451223,-859.86,0.00036311,2]
[377223971,1754303451233,-460.0,0.00036311,2]
[377223972,1754303451242,-460.0,0.00036311,2]
[377223973,1754303451252,-463.0737377,0.00036311,2]
[377223974,1754303451262,-847.55,0.00036311,2]
[377223975,1754303451272,-460.0,0.00036311,2]
[377223976,1754303451281,-534.64,0.00036311,2]
[377223977,1754303451290,-460.0,0.00036311,2]
[377223978,1754303451300,-460.0,0.00036311,2]
[377223979,1754303451310,-530.99,0.00036311,2]
[377223980,1754303451319,-1893.38,0.00036311,2]
[377223981,1754303451329,-1421.8,0.00036311,2]
[377223982,1754303451338,-1103.48,0.00036311,2]
[377223983,1754303451348,-460.0,0.00036311,2]
[377223984,1754303451357,-500.0,0.00036311,2]
[377223985,1754303451366,-460.0,0.00036311,2]
[377223986,1754303451375,-460.0,0.00036311,2]
[377223987,1754303451385,-619.57,0.00036311,2]
[377223988,1754303451394,-1920.5,0.00036311,2]
[377223989,1754303451403,-780.86,0.00036311,2]
[377223990,1754303451412,-200.51551987,0.0003632,10]
[377223991,1754303451422,-1241.24,0.00036321,2]
[377223992,1754303451432,-728.2,0.00036321,2]
[377223993,1754303451441,-5667.12,0.00036321,2]
[377223994,1754303451450,-151.0,0.00036321,14]
[377223995,1754303451459,-151.0,0.00036321,14]
[377223996,1754303451469,-151.0,0.00036321,14]
[377223997,1754303451479,-151.0,0.00036321,14]
[377223998,1754303451488,-197.317515,0.00036321,14]
[377223999,1754303451497,-197.317515,0.00036321,14]
[377224000,1754303451508,-1081.47,0.00036321,2]
[377224001,1754303451518,-151.0,0.00036321,14]
[377224002,1754303451527,-6359.95,0.00036321,2]
[377224003,1754303451536,-759.74,0.00036321,2]
[377224004,1754303451546,-460.0,0.00036321,2]
[377224005,1754303451555,-703.44,0.00036321,2]
[377224006,1754303451564,-1634.51,0.00036321,2]
[377224007,1754303451574,-151.0,0.00036321,14]
[377224008,1754303451583,-221.220054,0.00036321,14]
[377224009,1754303451593,-865.36,0.00036321,2]
[377224010,1754303451602,-460.0,0.00036321,2]
[377224011,1754303451611,-714.63,0.00036321,2]
[377224012,1754303451621,-2914.88,0.00036321,2]
[377224013,1754303451630,-460.0,0.00036321,2]
[377224014,1754303451640,-153.454116,0.00036325,14]
[377224015,1754303451650,-237.80551,0.00036325,14]
[377224016,1754303451659,-237.80551,0.00036325,14]
[377224017,1754303451669,-151.0,0.00036325,14]
[377224018,1754303451678,-1022.593667,0.00036325,14]
[377224019,1754303451687,-1022.593667,0.00036325,14]
[377224020,1754303451697,-959.73,0.00036325,2]
[377224021,1754303451706,-500.0,0.00036326,5]
[377224022,1754303451718,-501.52902678,0.00036326,5]
[377224023,1754303451729,-460.0,0.00036339,2]
[377224024,1754303451738,-460.0,0.00036339,2]
[377224025,1754303451748,-151.0,0.00036342,14]
[377224026,1754303451759,-197.317515,0.00036342,14]
[377224027,1754303451768,-197.317515,0.00036342,14]
[377224028,1754303451777,-798.99,0.00036342,2]
[377224029,1754303451787,-151.0,0.00036342,14]
[377224030,1754303451803,-554.81,0.00036342,2]
[377224031,1754303451812,-345.86437066,0.00036342,2]
[377224032,1754303451821,-1931.1,0.00036342,2]
[377224033,1754303451831,-151.0,0.00036342,14]
[377224034,1754303451840,-700.4,0.00036342,2]
[377224035,1754303451849,-236.85673666,0.00036342,2]
[377224036,1754303451859,-460.0,0.00036342,2]
[377224037,1754303451869,-467.24998121,0.00036342,2]
[377224038,1754303451878,-705.21,0.00036342,2]
[377224039,1754303451888,-460.0,0.00036342,2]
[377224040,1754303451897,-460.0,0.00036342,2]
[377224041,1754303451906,-460.0,0.00036342,2]
[377224042,1754303451916,-1047.04,0.00036342,2]
[377224043,1754303451926,-460.0,0.00036342,2]
[377224044,1754303451935,-460.0,0.00036342,2]
[377224045,1754303451945,-460.0,0.00036342,2]
[377224046,1754303451954,-945.55,0.00036342,2]
[377224047,1754303451963,-460.0,0.00036342,2]
[377224048,1754303451972,-460.0,0.00036342,2]
[377224049,1754303451982,-7270.13,0.00036342,2]
[377224050,1754303451991,-460.0,0.00036342,2]
[377224051,1754303452002,-460.0,0.00036342,2]
[377224052,1754303452011,-609.52,0.00036342,2]
[377224053,1754303452021,-964.32,0.00036342,2]
[377224054,1754303452030,-460.0,0.00036342,2]
[377224055,1754303452040,-676.48,0.00036342,2]
[377224056,1754303452049,-5287.54,0.00036342,2]
[377224057,1754303452058,-460.0,0.00036342,2]
[377224058,1754303452068,-500.0,0.00036344,2]
[377224059,1754303452078,-460.0,0.00036344,2]
[377224060,1754303452087,-460.58096382,0.00036344,2]
[377224061,1754303452096,-460.0,0.00036344,2]
[377224062,1754303452105,-460.0,0.00036344,2]
[377224063,1754303452115,-460.0,0.00036344,2]
[377224064,1754303452124,-424.11475362,0.00036344,2]
[377224065,1754303452134,-460.0,0.00036344,2]
[377224066,1754303452143,-460.0,0.00036344,2]
[377224067,1754303452153,-581.96,0.00036344,2]
[377224068,1754303452163,-460.0,0.00036344,2]
[377224069,1754303452172,-460.0,0.00036344,2]
[377224070,1754303452181,-460.0,0.00036344,2]
[377224071,1754303452190,-460.0,0.00036344,2]
[377224072,1754303452200,-460.0,0.00036344,2]
[377224073,1754303452210,-460.0,0.00036344,2]
[377224074,1754303452220,-490.2,0.00036344,2]
[377224075,1754303452229,-460.0,0.00036344,2]
[377224076,1754303452239,-460.0,0.00036344,2]
[377224077,1754303452248,-460.0,0.00036344,2]
[377224078,1754303452258,-460.0,0.00036344,2]
[377224079,1754303452268,-460.0,0.00036344,2]
[377224080,1754303452278,-668.44,0.00036344,2]
[377224081,1754303452287,-460.52710938,0.00036344,2]
[377224082,1754303452296,-460.73986513,0.00036344,2]
[377224083,1754303452306,-460.0,0.00036344,2]
[377224084,1754303452315,-460.0,0.00036344,2]
[377224085,1754303452325,-460.0,0.00036344,2]
[377224086,1754303452334,-310.29429887,0.00036344,2]
[377224087,1754303452343,-460.0,0.00036344,2]
[377224088,1754303452353,-460.0,0.00036344,2]
[377224089,1754303452363,-460.0,0.00036344,2]
[377224090,1754303452372,-461.49465452,0.00036344,2]
[377224091,1754303452382,-460.0,0.00036344,2]
[377224092,1754303452391,-460.0,0.00036344,2]
[377224093,1754303452400,-460.0,0.00036344,2]
[377224094,1754303452410,-460.0,0.00036344,2]
[377224095,1754303452419,-460.8924416,0.00036344,2]
[377224096,1754303452429,-553.68,0.00036344,2]
[377224097,1754303452438,-1105.82,0.00036344,2]
[377224098,1754303452448,-460.0,0.00036344,2]
[377224099,1754303452457,-460.0,0.00036344,2]
[377224100,1754303452467,-460.0,0.00036344,2]
[377224101,1754303452476,-460.0,0.00036344,2]
[377224102,1754303452485,-460.0,0.00036344,2]
[377224103,1754303452494,-460.0,0.00036344,2]
[377224104,1754303452504,-584.57,0.00036344,2]
[377224105,1754303452513,-197.64676256,0.00036344,2]
[377224106,1754303452522,-473.09,0.00036344,2]
[377224107,1754303452532,-460.0,0.00036344,2]
[377224108,1754303452541,-460.0,0.00036344,2]
[377224109,1754303452550,-460.0,0.00036344,2]
[377224110,1754303452560,-461.5317901,0.00036344,2]
[377224111,1754303452570,-463.6390252,0.00036344,2]
[377224112,1754303452580,-462.06087554,0.00036344,2]
[377224113,1754303452591,-493.10796598,0.00036344,2]
[377224114,1754303452601,-460.0,0.00036344,2]
[377224115,1754303452610,-461.43207842,0.00036344,2]
[377224116,1754303452620,-461.90048896,0.00036344,2]
[377224117,1754303452630,-461.16167803,0.00036344,2]
[377224118,1754303452639,-2949.43158728,0.00036348,34]
[377224119,1754303452658,-1302.84,0.00036349,2]
[377224120,1754303452669,-1463.59,0.00036349,2]
[377224121,1754303452679,-4744.6,0.00036349,2]
[377224122,1754303452690,-989.06,0.00036349,2]
[377224123,1754303452700,-12509.66,0.00036349,2]
[377224124,1754303452710,-7387.54,0.0003635,3]
[377224125,1754303452722,-3693.76,0.0003635,3]
[377224126,1754303452734,-2462.5,0.0003635,3]
[377224127,1754303452744,-1231.26,0.0003635,3]
[377224128,1754303452755,-615.62,0.0003635,3]
[377224129,1754303452765,-307.82,0.0003635,3]
[377224130,1754303452775,-1630.43,0.00036359,2]
[377224131,1754303452786,-708.75,0.00036359,2]
[377224132,1754303452796,-520.83,0.00036359,2]
[377224133,1754303452806,-460.0,0.00036359,2]
[377224134,1754303452816,-7973.24,0.00036359,2]
[377224135,1754303452956,-460.0,0.00036359,2]
[377224136,1754303452967,-1196.17,0.00036359,2]
[377224137,1754303452977,-698.03,0.00036359,2]
[377224138,1754303452986,-1745.85,0.00036359,2]
[377224139,1754303452996,-1756.77,0.00036359,2]
[377224140,1754303453007,-734.96,0.00036359,2]
[377224141,1754303453016,-1702.98,0.00036359,2]
[377224142,1754303453026,-2284.04,0.00036359,2]
[377224143,1754303453035,-460.0,0.00036359,2]
[377224144,1754303453045,-886.1,0.00036359,2]
[377224145,1754303453054,-1368.47944186,0.00036361,120]
[377224146,1754303453063,-260.0,0.00036362,2]
[377224147,1754303453072,-500.86414136,0.00036373,5]
[377224148,1754303453082,-502.91527638,0.00036373,5]
[377224149,1754303453091,-502.13406388,0.00036373,5]
[377224150,1754303453101,-500.0,0.00036373,5]
[377224151,1754303453110,-501.71491162,0.00036373,5]
[377224152,1754303453119,-500.0,0.00036373,5]
[377224153,1754303453128,-437.32267485,0.00036373,5]
[377224154,1754303453137,-500.0,0.00036373,5]
[377224155,1754303453147,-500.59736898,0.00036373,5]
[377224156,1754303453156,-500.0,0.00036373,5]
[377224157,1754303453165,-500.0,0.00036373,5]
[377224158,1754303453174,-500.0,0.00036373,5]
[377224159,1754303453184,-500.0,0.00036373,5]
[377224160,1754303453194,-150.0,0.00036373,5]
[377224161,1754303453203,-10742.84605401,0.00036495,2]
[377224162,1754303453213,-151.0,0.00036507,14]
[377224163,1754303453222,-460.0,0.00036507,2]
[377224164,1754303453231,-464.13722363,0.00036507,2]
[377224165,1754303453245,-460.0,0.00036507,2]
[377224166,1754303453257,-151.0,0.00036507,14]
[377224167,1754303453266,-2949.43158728,0.00036555,35]
[377224168,1754303453276,-1500.0,0.00036568,5]
[377224169,1754303453286,-1500.0,0.00036568,5]
[377224170,1754303453295,-650.84488263,0.00036568,5]
[377224171,1754303453305,-1500.0,0.00036568,5]
[377224172,1754303453315,-1500.0,0.00036568,5]
[377224173,1754303453324,-1511.94487122,0.00036568,5]
[377224174,1754303453334,-1004.1468384,0.00036568,5]
[377224175,1754303453344,-1500.0,0.00036568,5]
[377224176,1754303453354,-1237.33598814,0.00036568,2]
[377224177,1754303453363,-650.83960042,0.00036568,5]
[377224178,1754303453373,-742.96,0.00036573,2]
[377224179,1754303453383,-567.94,0.00036573,2]
[377224180,1754303453393,-460.0,0.00036573,2]
[377224181,1754303453402,-460.0,0.00036573,2]
[377224182,1754303453412,-643.41,0.00036573,2]
[377224183,1754303453421,-460.0,0.00036573,2]
[377224184,1754303453430,-460.0,0.00036573,2]
[377224185,1754303453440,-1105.59,0.00036573,2]
[377224186,1754303453449,-1163.89,0.00036573,2]
[377224187,1754303453459,-460.0,0.00036573,2]
[377224188,1754303453468,-254.16883237,0.00036573,2]
[377224189,1754303453477,-460.0,0.00036573,2]
[377224190,1754303453486,-805.32,0.00036573,2]
[377224191,1754303453496,-460.0,0.00036573,2]
[377224192,1754303453506,-442.16455687,0.00036573,2]
[377224193,1754303453515,-460.0,0.00036573,2]
[377224194,1754303453525,-17736.97,0.00036573,2]
[377224195,1754303453534,-886.63,0.00036573,2]
[377224196,1754303453544,-460.0,0.00036573,2]
[377224197,1754303453553,-675.43,0.00036573,2]
[377224198,1754303453563,-917.98,0.00036573,2]
[377224199,1754303453572,-1081.86,0.00036573,2]
[377224200,1754303453582,-151.0,0.00036575,14]
[377224201,1754303453591,-197.317515,0.00036575,14]
[377224202,1754303453600,-197.317515,0.00036575,14]
[377224203,1754303453610,-460.0,0.0003658,2]
[377224204,1754303453619,-460.0,0.0003658,2]
[377224205,1754303453628,-460.0,0.0003658,2]
[377224206,1754303453638,-784.53,0.0003658,2]
[377224207,1754303453647,-1988.39,0.0003658,2]
[377224208,1754303453657,-1848.23,0.0003658,2]
[377224209,1754303453666,-1051.73,0.0003658,2]
[377224210,1754303453676,-672.94,0.0003658,2]
[377224211,1754303453685,-460.0,0.0003658,2]
[377224212,1754303453695,-460.0,0.0003658,2]
[377224213,1754303453704,-768.23,0.0003658,2]
[377224214,1754303453714,-828.61,0.0003658,2]
[377224215,1754303453727,-1432.89,0.0003658,2]
[377224216,1754303453736,-460.0,0.0003658,2]
[377224217,1754303453746,-1114.04,0.0003658,2]
[377224218,1754303453756,-671.32,0.0003658,2]
[377224219,1754303453767,-1829.3,0.0003658,2]
[377224220,1754303453776,-1084.05,0.0003658,2]
[377224221,1754303453786,-817.04,0.00036583,2]
[377224222,1754303453797,-460.0,0.00036583,2]
[377224223,1754303453807,-460.0,0.00036583,2]
[377224224,1754303453817,-658.32,0.00036583,2]
[377224225,1754303453826,-460.0,0.00036583,2]
[377224226,1754303453836,-488.29,0.00036583,2]
[377224227,1754303453846,-460.0,0.00036583,2]
[377224228,1754303453855,-460.0,0.00036583,2]
[377224229,1754303453867,-460.0,0.00036583,2]
[377224230,1754303453877,-460.0,0.00036583,2]
[377224231,1754303453887,-460.0,0.00036583,2]
[377224232,1754303453898,-460.0,0.00036583,2]
[377224233,1754303453908,-460.0,0.00036583,2]
[377224234,1754303453918,-460.0,0.00036583,2]
[377224235,1754303453927,-460.0,0.00036583,2]
[377224236,1754303453937,-460.0,0.00036583,2]
[377224237,1754303453946,-988.51,0.00036583,2]